[Event "Late-Titled-Tuesday-Blitz-March-26-2024"]
[Site "Chess.com"]
[Date "2024.03.26"]
[Round "5"]
[White "Iball95"]
[Black "TheCount"]
[Result "1/2-1/2"]
[WhiteElo "2874"]
[BlackElo "2660"]
[TimeControl "180+1"]
[EndTime "14:58:56 PDT"]
[Termination "Game drawn - insufficient material"]

1. e4 {[%clk 0:02:59]} 1... c5 {[%clk 0:02:51.8]} 2. Nf3 {[%clk 0:02:59.1]} 2...
Nc6 {[%clk 0:02:43.8]} 3. Nc3 {[%clk 0:02:58.4]} 3... g6 {[%clk 0:02:38.4]} 4.
d4 {[%clk 0:02:58.6]} 4... cxd4 {[%clk 0:02:38.8]} 5. Nxd4 {[%clk 0:02:59.5]}
5... Bg7 {[%clk 0:02:39.5]} 6. Nxc6 {[%clk 0:03:00.1]} 6... bxc6 {[%clk
0:02:38.4]} 7. Bc4 {[%clk 0:03:00.4]} 7... Qc7 {[%clk 0:02:29.9]} 8. O-O {[%clk
0:02:56.6]} 8... Nf6 {[%clk 0:02:29.6]} 9. Re1 {[%clk 0:02:56.7]} 9... d6 {[%clk
0:02:27.6]} 10. Bf4 {[%clk 0:02:57.2]} 10... e5 {[%clk 0:02:27.1]} 11. Bg5
{[%clk 0:02:51.2]} 11... O-O {[%clk 0:02:26]} 12. Qd2 {[%clk 0:02:49.9]} 12...
Be6 {[%clk 0:02:11.1]} 13. Bb3 {[%clk 0:02:44.9]} 13... Rfe8 {[%clk 0:02:03.3]}
14. Rad1 {[%clk 0:02:45.3]} 14... Rad8 {[%clk 0:01:57.9]} 15. h3 {[%clk
0:02:45.4]} 15... Bxb3 {[%clk 0:01:30.5]} 16. axb3 {[%clk 0:02:46.3]} 16... Rd7
{[%clk 0:01:31.4]} 17. Qe3 {[%clk 0:02:41.4]} 17... Qb6 {[%clk 0:01:22.4]} 18.
Qf3 {[%clk 0:02:37.1]} 18... Re6 {[%clk 0:01:21.3]} 19. Rd2 {[%clk 0:02:34.8]}
19... h6 {[%clk 0:01:19.9]} 20. Be3 {[%clk 0:02:30.5]} 20... Qc7 {[%clk
0:01:18.3]} 21. Red1 {[%clk 0:02:31.1]} 21... Re8 {[%clk 0:01:02.9]} 22. Qe2
{[%clk 0:02:28.8]} 22... Red8 {[%clk 0:01:02]} 23. Qc4 {[%clk 0:02:17.3]} 23...
d5 {[%clk 0:00:56.2]} 24. exd5 {[%clk 0:02:04.3]} 24... cxd5 {[%clk 0:00:57.1]}
25. Qxc7 {[%clk 0:02:03.1]} 25... Rxc7 {[%clk 0:00:58]} 26. Nxd5 {[%clk
0:02:00.2]} 26... Nxd5 {[%clk 0:00:58.9]} 27. Rxd5 {[%clk 0:02:00.7]} 27... Rxd5
{[%clk 0:00:59.8]} 28. Rxd5 {[%clk 0:02:01]} 28... Rxc2 {[%clk 0:01:00.5]} 29.
Rd8+ {[%clk 0:01:56.3]} 29... Kh7 {[%clk 0:01:00.3]} 30. Bxa7 {[%clk 0:01:51.1]}
30... Rxb2 {[%clk 0:00:59]} 31. Rb8 {[%clk 0:01:50.8]} 31... e4 {[%clk
0:00:55.6]} 32. g3 {[%clk 0:01:47.6]} 32... Bc3 {[%clk 0:00:38.6]} 33. Bc5
{[%clk 0:01:44.1]} 33... g5 {[%clk 0:00:32.7]} 34. b4 {[%clk 0:01:44.2]} 34...
f5 {[%clk 0:00:32.8]} 35. b5 {[%clk 0:01:41.8]} 35... f4 {[%clk 0:00:31.6]} 36.
gxf4 {[%clk 0:01:42.7]} 36... gxf4 {[%clk 0:00:32.5]} 37. b6 {[%clk 0:01:08]}
37... e3 {[%clk 0:00:20.9]} 38. fxe3 {[%clk 0:00:59.2]} 38... f3 {[%clk
0:00:20.7]} 39. Rf8 {[%clk 0:00:56.5]} 39... Rb5 {[%clk 0:00:15]} 40. Rc8 {[%clk
0:00:27.2]} 40... Rb2 {[%clk 0:00:14.7]} 41. e4 {[%clk 0:00:20.1]} 41... Be5
{[%clk 0:00:15]} 42. Rf8 {[%clk 0:00:17.4]} 42... Rb5 {[%clk 0:00:08.6]} 43. Be3
{[%clk 0:00:17.5]} 43... Rb3 {[%clk 0:00:08]} 44. Rxf3 {[%clk 0:00:16.1]} 44...
Bd4 {[%clk 0:00:07.9]} 45. Kf2 {[%clk 0:00:14.5]} 45... Bxb6 {[%clk 0:00:07.6]}
46. Bxb6 {[%clk 0:00:14.8]} 46... Rxb6 {[%clk 0:00:08.5]} 47. Rg3 {[%clk
0:00:12.7]} 47... h5 {[%clk 0:00:04.9]} 48. Ke3 {[%clk 0:00:12]} 48... Rb1
{[%clk 0:00:05.5]} 49. Kf4 {[%clk 0:00:12.2]} 49... Rf1+ {[%clk 0:00:05.9]} 50.
Ke5 {[%clk 0:00:12.5]} 50... Kh6 {[%clk 0:00:06.5]} 51. Ke6 {[%clk 0:00:12.5]}
51... h4 {[%clk 0:00:05.7]} 52. Re3 {[%clk 0:00:11]} 52... Rg1 {[%clk
0:00:05.8]} 53. e5 {[%clk 0:00:09.2]} 53... Rg3 {[%clk 0:00:06.5]} 54. Re4
{[%clk 0:00:07]} 54... Kg5 {[%clk 0:00:07]} 55. Kf7 {[%clk 0:00:04.3]} 55...
Rf3+ {[%clk 0:00:06.5]} 56. Kg7 {[%clk 0:00:04.4]} 56... Kf5 {[%clk 0:00:06.1]}
57. Rxh4 {[%clk 0:00:03.5]} 57... Kxe5 {[%clk 0:00:05.2]} 58. Rh6 {[%clk
0:00:03.7]} 58... Rg3+ {[%clk 0:00:04.5]} 59. Kf7 {[%clk 0:00:03.5]} 59... Kf5
{[%clk 0:00:04.4]} 60. h4 {[%clk 0:00:04.2]} 60... Kg4 {[%clk 0:00:04.4]} 61.
Kg7 {[%clk 0:00:03.9]} 61... Ra3 {[%clk 0:00:03.9]} 62. h5 {[%clk 0:00:03.2]}
62... Ra7+ {[%clk 0:00:04]} 63. Kf8 {[%clk 0:00:03.6]} 63... Ra8+ {[%clk
0:00:04.5]} 64. Ke7 {[%clk 0:00:04.1]} 64... Ra7+ {[%clk 0:00:05.2]} 65. Kf8
{[%clk 0:00:04.5]} 65... Ra8+ {[%clk 0:00:05.6]} 66. Ke7 {[%clk 0:00:05]} 66...
Ra7+ {[%clk 0:00:06.1]} 67. Kd8 {[%clk 0:00:05.6]} 67... Ra8+ {[%clk 0:00:06.3]}
68. Kc7 {[%clk 0:00:06.3]} 68... Ra5 {[%clk 0:00:06.3]} 69. Rh8 {[%clk
0:00:05.8]} 69... Rxh5 {[%clk 0:00:05.8]} 70. Rxh5 {[%clk 0:00:06.7]} 70... Kxh5
{[%clk 0:00:06.3]} 1/2-1/2

[Event "Late-Titled-Tuesday-Blitz-March-26-2024"]
[Site "Chess.com"]
[Date "2024.03.26"]
[Round "5"]
[White "Statham_01"]
[Black "stollenmonster"]
[Result "0-1"]
[WhiteElo "2617"]
[BlackElo "2870"]
[TimeControl "180+1"]
[EndTime "14:58:59 PDT"]
[Termination "stollenmonster won by resignation"]

1. e4 {[%clk 0:03:00.9]} 1... c5 {[%clk 0:02:59.6]} 2. a3 {[%clk 0:03:00.6]}
2... e5 {[%clk 0:02:58.4]} 3. Nf3 {[%clk 0:03:00.1]} 3... Nc6 {[%clk 0:02:58.8]}
4. Nc3 {[%clk 0:02:57.8]} 4... Nf6 {[%clk 0:02:59.2]} 5. Bc4 {[%clk 0:02:57.2]}
5... h6 {[%clk 0:02:57.3]} 6. d3 {[%clk 0:02:56.7]} 6... d6 {[%clk 0:02:57.6]}
7. h3 {[%clk 0:02:56.9]} 7... g6 {[%clk 0:02:58.1]} 8. Be3 {[%clk 0:02:56.9]}
8... Bg7 {[%clk 0:02:58.3]} 9. Qd2 {[%clk 0:02:56.6]} 9... Nd4 {[%clk
0:02:55.6]} 10. O-O-O {[%clk 0:02:41.1]} 10... Rb8 {[%clk 0:02:54]} 11. Ba2
{[%clk 0:02:27.7]} 11... Qe7 {[%clk 0:02:44.2]} 12. Nh2 {[%clk 0:02:15.3]} 12...
Be6 {[%clk 0:02:39.6]} 13. Ng4 {[%clk 0:01:45.7]} 13... Bxa2 {[%clk 0:02:32.5]}
14. Nxa2 {[%clk 0:01:42.7]} 14... Nd7 {[%clk 0:02:22.5]} 15. Nc3 {[%clk
0:01:20.8]} 15... Qe6 {[%clk 0:02:19.7]} 16. Nd5 {[%clk 0:01:17.8]} 16... Rc8
{[%clk 0:02:05.2]} 17. f4 {[%clk 0:01:17.5]} 17... Nb6 {[%clk 0:01:58.1]} 18.
Bxd4 {[%clk 0:01:10.6]} 18... cxd4 {[%clk 0:01:57.2]} 19. f5 {[%clk 0:00:58.3]}
19... gxf5 {[%clk 0:01:55.3]} 20. Nxb6 {[%clk 0:00:57.6]} 20... axb6 {[%clk
0:01:53.5]} 21. exf5 {[%clk 0:00:57.7]} 21... Qxf5 {[%clk 0:01:49.2]} 22. Kb1
{[%clk 0:00:49.4]} 22... Qe6 {[%clk 0:01:42.7]} 23. Qb4 {[%clk 0:00:44.1]} 23...
f5 {[%clk 0:01:31.6]} 24. Nf2 {[%clk 0:00:40.1]} 24... Rc6 {[%clk 0:01:31.7]}
25. g4 {[%clk 0:00:38.6]} 25... O-O {[%clk 0:01:16.2]} 26. gxf5 {[%clk
0:00:38.3]} 26... Rxf5 {[%clk 0:01:12.3]} 27. Ne4 {[%clk 0:00:37.7]} 27... d5
{[%clk 0:01:12.1]} 28. Ng3 {[%clk 0:00:35.2]} 28... Rg5 {[%clk 0:01:09]} 29.
Rdg1 {[%clk 0:00:27.5]} 29... Qg6 {[%clk 0:01:08.2]} 30. Ne2 {[%clk 0:00:23.8]}
30... e4 {[%clk 0:00:48.8]} 31. h4 {[%clk 0:00:23.2]} 31... Rg2 {[%clk
0:00:44.9]} 32. Rxg2 {[%clk 0:00:18.6]} 32... Qxg2 {[%clk 0:00:44.5]} 33. Rg1
{[%clk 0:00:19.3]} 33... Qf2 {[%clk 0:00:30.2]} 34. Qe7 {[%clk 0:00:10.7]} 34...
Qf6 {[%clk 0:00:27.4]} 35. Qe8+ {[%clk 0:00:04.5]} 35... Qf8 {[%clk 0:00:26.6]}
36. Qh5 {[%clk 0:00:02.8]} 36... Qf7 {[%clk 0:00:22.3]} 37. Qg4 {[%clk
0:00:02.5]} 37... exd3 {[%clk 0:00:16.2]} 38. cxd3 {[%clk 0:00:03.4]} 38... Kh7
{[%clk 0:00:16.6]} 39. Nf4 {[%clk 0:00:03.5]} 39... Rf6 {[%clk 0:00:16.2]} 40.
Nh5 {[%clk 0:00:03.3]} 40... Rg6 {[%clk 0:00:15.8]} 41. Qxg6+ {[%clk 0:00:02]}
41... Qxg6 {[%clk 0:00:16]} 42. Rxg6 {[%clk 0:00:02.9]} 42... Kxg6 {[%clk
0:00:16.7]} 43. Nf4+ {[%clk 0:00:03.8]} 43... Kf5 {[%clk 0:00:16.6]} 44. Nxd5
{[%clk 0:00:04.4]} 44... Bf6 {[%clk 0:00:16.7]} 45. h5 {[%clk 0:00:03.7]} 45...
Kg5 {[%clk 0:00:15.7]} 46. Kc2 {[%clk 0:00:04.2]} 46... Bd8 {[%clk 0:00:15.8]}
47. Kd2 {[%clk 0:00:03.4]} 47... Kxh5 {[%clk 0:00:15.9]} 48. Nf4+ {[%clk
0:00:03.9]} 48... Kg4 {[%clk 0:00:15.5]} 49. Ne6 {[%clk 0:00:04.6]} 49... Bf6
{[%clk 0:00:15.6]} 50. Ke2 {[%clk 0:00:05.2]} 50... h5 {[%clk 0:00:15.9]} 51.
Kf2 {[%clk 0:00:05.1]} 51... h4 {[%clk 0:00:16.3]} 52. Kg2 {[%clk 0:00:04.7]}
52... h3+ {[%clk 0:00:16.5]} 53. Kh1 {[%clk 0:00:03.9]} 53... Be5 {[%clk
0:00:14.2]} 54. Nf8 {[%clk 0:00:02.5]} 54... Kf3 {[%clk 0:00:13.4]} 55. Nd7
{[%clk 0:00:03]} 55... Bc7 {[%clk 0:00:12.8]} 56. Nf6 {[%clk 0:00:02.5]} 56...
Ke2 {[%clk 0:00:12.7]} 57. Nd5 {[%clk 0:00:03]} 57... Be5 {[%clk 0:00:11]} 58.
Nb4 {[%clk 0:00:02.6]} 58... Bd6 {[%clk 0:00:10.5]} 59. Nd5 {[%clk 0:00:03.1]}
59... Kxd3 {[%clk 0:00:10]} 60. Nxb6 {[%clk 0:00:03.8]} 60... Kc2 {[%clk
0:00:10.2]} 61. Nd5 {[%clk 0:00:02.9]} 61... d3 {[%clk 0:00:10]} 62. Ne3+ {[%clk
0:00:03.4]} 62... Kxb2 {[%clk 0:00:08.5]} 63. Nc4+ {[%clk 0:00:03.8]} 63... Ka1
{[%clk 0:00:06.8]} 64. a4 {[%clk 0:00:02.5]} 64... Bf4 {[%clk 0:00:05.9]} 65. a5
{[%clk 0:00:02.2]} 65... d2 {[%clk 0:00:05.8]} 66. Nxd2 {[%clk 0:00:01.4]} 66...
Bxd2 {[%clk 0:00:06.4]} 67. Kh2 {[%clk 0:00:02]} 67... Bxa5 {[%clk 0:00:06.6]}
0-1

[Event "Late-Titled-Tuesday-Blitz-March-26-2024"]
[Site "Chess.com"]
[Date "2024.03.26"]
[Round "5"]
[White "bilelou"]
[Black "sergiochess83"]
[Result "0-1"]
[WhiteElo "2706"]
[BlackElo "2989"]
[TimeControl "180+1"]
[EndTime "14:59:03 PDT"]
[Termination "sergiochess83 won on time"]

1. e4 {[%clk 0:03:00.9]} 1... e6 {[%clk 0:02:54.9]} 2. d4 {[%clk 0:02:58.5]}
2... d5 {[%clk 0:02:55.4]} 3. e5 {[%clk 0:02:58.9]} 3... c5 {[%clk 0:02:55]} 4.
c3 {[%clk 0:02:59.4]} 4... Nc6 {[%clk 0:02:55.7]} 5. g3 {[%clk 0:02:54.5]} 5...
Bd7 {[%clk 0:02:48]} 6. Ne2 {[%clk 0:02:53]} 6... h5 {[%clk 0:02:25]} 7. Bh3
{[%clk 0:02:51]} 7... h4 {[%clk 0:01:58.5]} 8. g4 {[%clk 0:02:49.1]} 8... f6
{[%clk 0:01:54.5]} 9. f4 {[%clk 0:02:02.1]} 9... Qb6 {[%clk 0:01:47.8]} 10. a4
{[%clk 0:01:41.7]} 10... a6 {[%clk 0:01:39.1]} 11. O-O {[%clk 0:01:28.7]} 11...
O-O-O {[%clk 0:01:29.7]} 12. Kh1 {[%clk 0:01:23.3]} 12... cxd4 {[%clk
0:01:25.4]} 13. cxd4 {[%clk 0:01:22.2]} 13... Kb8 {[%clk 0:01:23.9]} 14. Nbc3
{[%clk 0:01:21.1]} 14... Na5 {[%clk 0:01:21.5]} 15. Be3 {[%clk 0:01:10.5]} 15...
Rc8 {[%clk 0:01:10.4]} 16. Rb1 {[%clk 0:01:08]} 16... Ne7 {[%clk 0:00:36.7]} 17.
b4 {[%clk 0:00:58.7]} 17... Nc4 {[%clk 0:00:36.3]} 18. Bg1 {[%clk 0:00:59.3]}
18... Qc7 {[%clk 0:00:18.2]} 19. b5 {[%clk 0:00:56.2]} 19... a5 {[%clk
0:00:18.4]} 20. b6 {[%clk 0:00:36.9]} 20... Nxb6 {[%clk 0:00:17.8]} 21. Nb5
{[%clk 0:00:37.1]} 21... Bxb5 {[%clk 0:00:10.3]} 22. Rxb5 {[%clk 0:00:38]} 22...
Nc4 {[%clk 0:00:09.9]} 23. Rf3 {[%clk 0:00:34.8]} 23... Nc6 {[%clk 0:00:09.9]}
24. Rfb3 {[%clk 0:00:19.4]} 24... Bb4 {[%clk 0:00:10]} 25. f5 {[%clk 0:00:17.7]}
25... fxe5 {[%clk 0:00:09.8]} 26. fxe6 {[%clk 0:00:16.2]} 26... Rce8 {[%clk
0:00:06.3]} 27. Rxd5 {[%clk 0:00:15.4]} 27... Rxe6 {[%clk 0:00:05.4]} 28. Bg2
{[%clk 0:00:14]} 28... Rhe8 {[%clk 0:00:04.2]} 29. Bf2 {[%clk 0:00:10.9]} 29...
exd4 {[%clk 0:00:04.2]} 30. Bf3 {[%clk 0:00:05.4]} 30... Ne3 {[%clk 0:00:03.3]}
31. Bxe3 {[%clk 0:00:04.7]} 31... Rxe3 {[%clk 0:00:04]} 32. Rxe3 {[%clk
0:00:04.4]} 32... dxe3 {[%clk 0:00:03.6]} 33. Rd7 {[%clk 0:00:03.9]} 33... Qb6
{[%clk 0:00:03.9]} 34. Qd5 {[%clk 0:00:03.5]} 34... Bd2 {[%clk 0:00:02.4]} 35.
Kg2 {[%clk 0:00:03.7]} 35... Rc8 {[%clk 0:00:01.9]} 36. Nd4 {[%clk 0:00:03.7]}
36... Rc7 {[%clk 0:00:02.8]} 37. Nxc6+ {[%clk 0:00:02.8]} 37... Qxc6 {[%clk
0:00:03.7]} 38. Rd8+ {[%clk 0:00:03]} 38... Ka7 {[%clk 0:00:03.9]} 39. Qd4+
{[%clk 0:00:03.5]} 39... Qc5 {[%clk 0:00:03.9]} 40. Qe4 {[%clk 0:00:01.9]} 40...
Qc6 {[%clk 0:00:02.5]} 41. Qe5 {[%clk 0:00:01.4]} 41... Qc5 {[%clk 0:00:02.8]}
42. Qe8 {[%clk 0:00:01.2]} 42... Bb4 {[%clk 0:00:02.4]} 43. Ra8+ {[%clk
0:00:01.9]} 43... Kb6 {[%clk 0:00:02.6]} 44. Qe6+ {[%clk 0:00:02.4]} 44... Qd6
{[%clk 0:00:03]} 45. Qxe3+ {[%clk 0:00:01.6]} 45... Rc5 {[%clk 0:00:02.5]} 46.
Qe8 {[%clk 0:00:01.3]} 46... Qd2+ {[%clk 0:00:02.4]} 47. Qe2 {[%clk 0:00:02.2]}
47... Qxe2+ {[%clk 0:00:02.5]} 48. Bxe2 {[%clk 0:00:03.1]} 48... Rc3 {[%clk
0:00:03.1]} 49. Bf3 {[%clk 0:00:02]} 49... h3+ {[%clk 0:00:04]} 50. Kg3 {[%clk
0:00:02]} 50... Bd6+ {[%clk 0:00:04.2]} 51. Kf2 {[%clk 0:00:02.6]} 51... Rc2+
{[%clk 0:00:04.2]} 52. Ke3 {[%clk 0:00:02]} 52... Bxh2 {[%clk 0:00:04.1]} 53.
Rh8 {[%clk 0:00:02.4]} 53... Bg1+ {[%clk 0:00:04.5]} 54. Ke4 {[%clk 0:00:02.7]}
54... h2 {[%clk 0:00:05.4]} 55. g5 {[%clk 0:00:03]} 55... Rc5 {[%clk 0:00:05.6]}
56. Kf4 {[%clk 0:00:03.1]} 56... Rc4+ {[%clk 0:00:05.5]} 57. Kf5 {[%clk
0:00:03.2]} 57... Rc5+ {[%clk 0:00:05.1]} 58. Kg6 {[%clk 0:00:03.7]} 58... Be3
{[%clk 0:00:05.4]} 59. Kxg7 {[%clk 0:00:03.7]} 59... Rxg5+ {[%clk 0:00:05.5]}
60. Kf7 {[%clk 0:00:04.2]} 60... Rg3 {[%clk 0:00:05.7]} 61. Be4 {[%clk
0:00:03.1]} 61... Bg1 {[%clk 0:00:05.9]} 62. Rh7 {[%clk 0:00:02.5]} 62... Rc3
{[%clk 0:00:05.5]} 63. Ke6 {[%clk 0:00:02.9]} 63... Kc5 {[%clk 0:00:05.7]} 64.
Rxb7 {[%clk 0:00:02.8]} 64... Kd4 {[%clk 0:00:06.1]} 65. Bh1 {[%clk 0:00:02.4]}
65... Rc4 {[%clk 0:00:05.8]} 66. Rd7+ {[%clk 0:00:02]} 66... Ke3 {[%clk
0:00:06]} 67. Rd5 {[%clk 0:00:01.7]} 67... Rxa4 {[%clk 0:00:06.1]} 68. Re5+
{[%clk 0:00:02.2]} 68... Kf2 {[%clk 0:00:05.7]} 69. Kf5 {[%clk 0:00:02.2]} 69...
Kg3 {[%clk 0:00:05.5]} 70. Re4 {[%clk 0:00:01.3]} 70... Rxe4 {[%clk 0:00:05.1]}
71. Kxe4 {[%clk 0:00:02.2]} 71... Bc5 {[%clk 0:00:04.8]} 72. Kd3 {[%clk
0:00:02.5]} 72... Kf2 {[%clk 0:00:04.9]} 73. Kc4 {[%clk 0:00:02.1]} 73... Bb4
{[%clk 0:00:05.3]} 74. Bd5 {[%clk 0:00:02.1]} 74... Kg1 {[%clk 0:00:06.2]} 75.
Kb3 {[%clk 0:00:02.4]} 75... h1=Q {[%clk 0:00:06.6]} 76. Bxh1 {[%clk 0:00:02.9]}
76... Kxh1 {[%clk 0:00:07.5]} 0-1

[Event "Late-Titled-Tuesday-Blitz-March-26-2024"]
[Site "Chess.com"]
[Date "2024.03.26"]
[Round "6"]
[White "BebeBonito2022"]
[Black "crazycheesecake"]
[Result "1-0"]
[WhiteElo "2298"]
[BlackElo "2032"]
[TimeControl "180+1"]
[EndTime "15:02:14 PDT"]
[Termination "BebeBonito2022 won by checkmate"]

1. d4 {[%clk 0:03:00.9]} 1... d5 {[%clk 0:02:59.6]} 2. c4 {[%clk 0:03:01.2]}
2... e6 {[%clk 0:02:59.6]} 3. Nc3 {[%clk 0:03:01.1]} 3... Nf6 {[%clk 0:02:58.7]}
4. cxd5 {[%clk 0:03:01.1]} 4... exd5 {[%clk 0:02:58]} 5. Bg5 {[%clk 0:03:01.2]}
5... c6 {[%clk 0:02:58.5]} 6. e3 {[%clk 0:03:01.7]} 6... Be7 {[%clk 0:02:58.8]}
7. Bd3 {[%clk 0:03:01.8]} 7... Nbd7 {[%clk 0:02:56.6]} 8. Nge2 {[%clk
0:03:01.9]} 8... h6 {[%clk 0:02:55.7]} 9. Bh4 {[%clk 0:03:01.4]} 9... Nh5 {[%clk
0:02:55.8]} 10. Bxe7 {[%clk 0:03:00.2]} 10... Qxe7 {[%clk 0:02:56]} 11. O-O
{[%clk 0:02:59.7]} 11... Nhf6 {[%clk 0:02:54.3]} 12. Qc2 {[%clk 0:02:54.7]}
12... O-O {[%clk 0:02:53.7]} 13. Rae1 {[%clk 0:02:55]} 13... Qd8 {[%clk
0:02:52.7]} 14. f3 {[%clk 0:02:52.8]} 14... Re8 {[%clk 0:02:52.2]} 15. e4 {[%clk
0:02:48.5]} 15... dxe4 {[%clk 0:02:52.2]} 16. fxe4 {[%clk 0:02:48.8]} 16... b6
{[%clk 0:02:47.9]} 17. e5 {[%clk 0:02:45.3]} 17... Nd5 {[%clk 0:02:46]} 18. Nxd5
{[%clk 0:02:40.6]} 18... cxd5 {[%clk 0:02:46.3]} 19. Qc6 {[%clk 0:02:33.7]}
19... Rb8 {[%clk 0:02:42.4]} 20. Qxd5 {[%clk 0:02:33.6]} 20... Bb7 {[%clk
0:02:40]} 21. Qxf7+ {[%clk 0:02:33.4]} 21... Kh8 {[%clk 0:02:37.8]} 22. Qg6
{[%clk 0:02:28.1]} 22... Kg8 {[%clk 0:02:28.6]} 23. Qh7# {[%clk 0:02:26.9]} 1-0

[Event "Late-Titled-Tuesday-Blitz-March-26-2024"]
[Site "Chess.com"]
[Date "2024.03.26"]
[Round "6"]
[White "Bryanl106"]
[Black "artooon"]
[Result "0-1"]
[WhiteElo "2680"]
[BlackElo "3023"]
[TimeControl "180+1"]
[EndTime "15:03:01 PDT"]
[Termination "artooon won by resignation"]

1. e4 {[%clk 0:02:57.8]} 1... Nf6 {[%clk 0:03:00.9]} 2. e5 {[%clk 0:02:58]} 2...
Nd5 {[%clk 0:03:01.5]} 3. d4 {[%clk 0:02:58.8]} 3... Nb6 {[%clk 0:03:02.4]} 4.
c4 {[%clk 0:02:59.6]} 4... d6 {[%clk 0:03:01.3]} 5. exd6 {[%clk 0:02:58.9]} 5...
cxd6 {[%clk 0:03:02.2]} 6. Nc3 {[%clk 0:02:59]} 6... g6 {[%clk 0:03:02.9]} 7.
Be3 {[%clk 0:02:59.5]} 7... Bg7 {[%clk 0:03:03.6]} 8. b3 {[%clk 0:03:00.1]} 8...
O-O {[%clk 0:03:04.4]} 9. Rc1 {[%clk 0:03:00.7]} 9... Nc6 {[%clk 0:03:05.1]} 10.
d5 {[%clk 0:02:58.7]} 10... Ne5 {[%clk 0:03:02]} 11. Be2 {[%clk 0:02:56.2]}
11... h5 {[%clk 0:02:52.6]} 12. h3 {[%clk 0:02:51]} 12... e6 {[%clk 0:02:51.9]}
13. dxe6 {[%clk 0:02:49.8]} 13... Bxe6 {[%clk 0:02:52.8]} 14. Nf3 {[%clk
0:02:49.9]} 14... d5 {[%clk 0:02:44.2]} 15. c5 {[%clk 0:02:46.7]} 15... Nxf3+
{[%clk 0:02:40.2]} 16. Bxf3 {[%clk 0:02:47.6]} 16... d4 {[%clk 0:02:40.8]} 17.
cxb6 {[%clk 0:02:44.4]} 17... dxe3 {[%clk 0:02:41.1]} 18. Qxd8 {[%clk
0:02:40.8]} 18... exf2+ {[%clk 0:02:37.5]} 19. Kxf2 {[%clk 0:02:40.1]} 19...
Rfxd8 {[%clk 0:02:38.1]} 20. Nb5 {[%clk 0:02:34.2]} 20... axb6 {[%clk
0:02:32.4]} 21. Rc2 {[%clk 0:02:32.5]} 21... Bf5 {[%clk 0:02:29.1]} 22. Re2
{[%clk 0:02:24.3]} 22... Bd3 {[%clk 0:02:29.2]} 23. Re7 {[%clk 0:02:16.3]} 23...
Rxa2+ {[%clk 0:02:22.5]} 24. Kg3 {[%clk 0:02:11.7]} 24... Bxb5 {[%clk
0:02:22.7]} 25. Rxb7 {[%clk 0:02:06.8]} 25... Be5+ {[%clk 0:02:22.4]} 26. Kh4
{[%clk 0:02:06.9]} 26... Rd4+ {[%clk 0:02:14.2]} 27. Kg5 {[%clk 0:02:07]} 27...
Kg7 {[%clk 0:02:14]} 0-1

[Event "Late-Titled-Tuesday-Blitz-March-26-2024"]
[Site "Chess.com"]
[Date "2024.03.26"]
[Round "6"]
[White "Oleg_Papayan"]
[Black "GAO"]
[Result "1-0"]
[WhiteElo "2636"]
[BlackElo "2344"]
[TimeControl "180+1"]
[EndTime "15:03:11 PDT"]
[Termination "Oleg_Papayan won by resignation"]

1. e4 {[%clk 0:03:00.9]} 1... c5 {[%clk 0:02:58.7]} 2. Nf3 {[%clk 0:02:58.4]}
2... Nc6 {[%clk 0:02:59.6]} 3. Bb5 {[%clk 0:02:58.1]} 3... g6 {[%clk 0:02:49.7]}
4. O-O {[%clk 0:02:57.5]} 4... Bg7 {[%clk 0:02:49.4]} 5. c3 {[%clk 0:02:56.7]}
5... Nf6 {[%clk 0:02:47.1]} 6. Re1 {[%clk 0:02:55.5]} 6... O-O {[%clk
0:02:45.4]} 7. d4 {[%clk 0:02:55.7]} 7... d5 {[%clk 0:02:46]} 8. e5 {[%clk
0:02:55.6]} 8... Ne4 {[%clk 0:02:45.9]} 9. Bxc6 {[%clk 0:02:56]} 9... bxc6
{[%clk 0:02:45.6]} 10. Be3 {[%clk 0:02:56.7]} 10... Bg4 {[%clk 0:02:43.6]} 11.
h3 {[%clk 0:02:55.9]} 11... Bxf3 {[%clk 0:02:43.8]} 12. gxf3 {[%clk 0:02:56.8]}
12... cxd4 {[%clk 0:02:41.6]} 13. cxd4 {[%clk 0:02:56.8]} 13... f5 {[%clk
0:02:29.6]} 14. fxe4 {[%clk 0:02:56]} 14... fxe4 {[%clk 0:02:30.5]} 15. Qg4
{[%clk 0:02:54.3]} 15... Rf3 {[%clk 0:02:28.8]} 16. Nd2 {[%clk 0:02:52.5]} 16...
Rf5 {[%clk 0:02:28.8]} 17. Rac1 {[%clk 0:02:51.3]} 17... Qd7 {[%clk 0:02:28.3]}
18. Nf1 {[%clk 0:02:38.7]} 18... Qb7 {[%clk 0:01:56]} 19. b3 {[%clk 0:02:35.5]}
19... Rf3 {[%clk 0:01:56.9]} 20. Qe6+ {[%clk 0:02:33]} 20... Kh8 {[%clk
0:01:56.7]} 21. Qxc6 {[%clk 0:02:33.1]} 21... Qb8 {[%clk 0:01:56.1]} 22. Qxd5
{[%clk 0:02:30.5]} 22... Rxh3 {[%clk 0:01:54.6]} 23. Ng3 {[%clk 0:02:25]} 23...
Qf8 {[%clk 0:01:51.4]} 24. Qxe4 {[%clk 0:02:21.3]} 24... Rd8 {[%clk 0:01:50.4]}
25. Kg2 {[%clk 0:02:19.5]} 1-0

[Event "Late-Titled-Tuesday-Blitz-March-26-2024"]
[Site "Chess.com"]
[Date "2024.03.26"]
[Round "6"]
[White "deepfear"]
[Black "roxannyzoldyck"]
[Result "1-0"]
[WhiteElo "1965"]
[BlackElo "2189"]
[TimeControl "180+1"]
[EndTime "15:03:32 PDT"]
[Termination "deepfear won by resignation"]

1. e4 {[%clk 0:03:00]} 1... c5 {[%clk 0:02:59.6]} 2. Nc3 {[%clk 0:02:59.7]} 2...
Nc6 {[%clk 0:02:49.2]} 3. g3 {[%clk 0:02:59.2]} 3... g6 {[%clk 0:02:47.6]} 4.
Bg2 {[%clk 0:02:58.8]} 4... Bg7 {[%clk 0:02:48.2]} 5. d3 {[%clk 0:02:58.4]} 5...
e6 {[%clk 0:02:47]} 6. Be3 {[%clk 0:02:58.3]} 6... Nge7 {[%clk 0:02:47.6]} 7.
Qd2 {[%clk 0:02:57.6]} 7... d6 {[%clk 0:02:46]} 8. Nf3 {[%clk 0:02:55]} 8... O-O
{[%clk 0:02:45.7]} 9. Bh6 {[%clk 0:02:52]} 9... Rb8 {[%clk 0:02:42.8]} 10. h4
{[%clk 0:02:48.4]} 10... d5 {[%clk 0:02:42.7]} 11. h5 {[%clk 0:02:41]} 11...
dxe4 {[%clk 0:02:42.7]} 12. Nxe4 {[%clk 0:02:40.8]} 12... Nf5 {[%clk 0:02:42.5]}
13. Bxg7 {[%clk 0:02:39.8]} 13... Kxg7 {[%clk 0:02:41]} 14. hxg6 {[%clk
0:02:39.3]} 14... hxg6 {[%clk 0:02:40.9]} 15. g4 {[%clk 0:02:36.7]} 15... Rh8
{[%clk 0:02:29.2]} 16. Rxh8 {[%clk 0:02:35.7]} 16... Qxh8 {[%clk 0:02:29.3]} 17.
gxf5 {[%clk 0:02:34.2]} 17... exf5 {[%clk 0:02:29.7]} 18. Qc3+ {[%clk
0:02:30.9]} 18... Kg8 {[%clk 0:02:23.6]} 19. Nf6+ {[%clk 0:02:14.7]} 19... Kf8
{[%clk 0:02:10.9]} 20. Qxc5+ {[%clk 0:02:14.6]} 20... Ne7 {[%clk 0:01:41.2]} 21.
Nd5 {[%clk 0:02:08.5]} 1-0